[Event "Live Chess"]
[Site "Chess.com"]
[Date "2023.05.20"]
[Round "-"]
[White "VovaOvchar1990"]
[Black "birdseed45"]
[Result "0-1"]
[WhiteElo "1202"]
[BlackElo "1872"]
[TimeControl "300"]
[EndTime "11:34:50 PDT"]
[Termination "birdseed45 won on time"]

1. e4 {[%clk 0:04:57.6]} 1... c5 {[%clk 0:04:58.7]} 2. Bc4 {[%clk 0:04:56.3]}
2... Nc6 {[%clk 0:04:57.1]} 3. Nf3 {[%clk 0:04:53.7]} 3... e6 {[%clk 0:04:56.1]}
4. Nc3 {[%clk 0:04:52.4]} 4... Nf6 {[%clk 0:04:54.3]} 5. O-O {[%clk 0:04:51.2]}
5... Be7 {[%clk 0:04:52.6]} 6. h3 {[%clk 0:04:50.2]} 6... d5 {[%clk 0:04:50.6]}
7. exd5 {[%clk 0:04:48.8]} 7... exd5 {[%clk 0:04:50.5]} 8. Bb5 {[%clk
0:04:45.5]} 8... O-O {[%clk 0:04:48.7]} 9. Bxc6 {[%clk 0:04:43]} 9... bxc6
{[%clk 0:04:48.6]} 10. d3 {[%clk 0:04:41.3]} 10... d4 {[%clk 0:04:47.4]} 11. Ne2
{[%clk 0:04:36.1]} 11... h6 {[%clk 0:04:44.7]} 12. Ng3 {[%clk 0:04:34.9]} 12...
Bd6 {[%clk 0:04:42.9]} 13. Bd2 {[%clk 0:04:27.3]} 13... Qc7 {[%clk 0:04:42]} 14.
Nh1 {[%clk 0:01:13.3]} 14... Nd5 {[%clk 0:04:24.6]} 15. c4 {[%clk 0:01:04.3]}
15... Nf4 {[%clk 0:04:16.6]} 16. Bxf4 {[%clk 0:00:54.6]} 16... Bxf4 {[%clk
0:04:16.5]} 17. b3 {[%clk 0:00:48.9]} 17... Bf5 {[%clk 0:04:13]} 18. Nh4 {[%clk
0:00:40.1]} 18... Bh7 {[%clk 0:04:09.1]} 19. g3 {[%clk 0:00:33.5]} 19... Bd6
{[%clk 0:04:05.3]} 20. f4 {[%clk 0:00:12.9]} 20... Rfe8 {[%clk 0:04:01.6]} 21.
Kg2 {[%clk 0:00:09.4]} 21... Re3 {[%clk 0:03:58.5]} 22. Rf3 {[%clk 0:00:06.9]}
22... Rae8 {[%clk 0:03:53.8]} 23. Rxe3 {[%clk 0:00:04.4]} 23... Rxe3 {[%clk
0:03:53.7]} 24. Nf2 {[%clk 0:00:02.4]} 24... Qe7 {[%clk 0:03:49]} 25. Qe1 {[%clk
0:00:00.5]} 25... Rxe1 {[%clk 0:03:47.2]} 0-1

[Event "Live Chess"]
[Site "Chess.com"]
[Date "2023.05.20"]
[Round "-"]
[White "TDCMF"]
[Black "matt1979"]
[Result "0-1"]
[WhiteElo "362"]
[BlackElo "1453"]
[TimeControl "300"]
[EndTime "11:34:53 PDT"]
[Termination "matt1979 won by checkmate"]

1. e4 {[%clk 0:04:56.7]} 1... c5 {[%clk 0:04:57.8]} 2. d4 {[%clk 0:04:54.3]}
2... cxd4 {[%clk 0:04:54.8]} 3. Qxd4 {[%clk 0:04:53.4]} 3... Nc6 {[%clk
0:04:52.8]} 4. Qc5 {[%clk 0:04:50.1]} 4... d6 {[%clk 0:04:49.8]} 5. Qc4 {[%clk
0:04:46.9]} 5... Nf6 {[%clk 0:04:43]} 6. e5 {[%clk 0:04:44.8]} 6... Nxe5 {[%clk
0:04:38.6]} 7. Qd4 {[%clk 0:04:41]} 7... Qc7 {[%clk 0:04:27.5]} 8. Bf4 {[%clk
0:04:38.5]} 8... Nc6 {[%clk 0:04:15.1]} 9. Qc3 {[%clk 0:04:22.3]} 9... Bf5
{[%clk 0:04:08.4]} 10. Bc4 {[%clk 0:04:03.7]} 10... e6 {[%clk 0:03:55.5]} 11.
Nf3 {[%clk 0:03:34.8]} 11... Be7 {[%clk 0:03:49.1]} 12. Nbd2 {[%clk 0:03:32.7]}
12... O-O {[%clk 0:03:46.1]} 13. O-O-O {[%clk 0:03:29.9]} 13... e5 {[%clk
0:03:37.9]} 14. Nxe5 {[%clk 0:03:15.9]} 14... dxe5 {[%clk 0:03:31.4]} 15. Bxe5
{[%clk 0:03:13.1]} 15... Qxe5 {[%clk 0:03:19.6]} 16. Qxe5 {[%clk 0:02:59.4]}
16... Nxe5 {[%clk 0:03:18]} 17. Bd3 {[%clk 0:02:52.5]} 17... Nxd3+ {[%clk
0:03:15.8]} 18. cxd3 {[%clk 0:02:49.6]} 18... Bxd3 {[%clk 0:03:14.6]} 19. Rhe1
{[%clk 0:02:42.8]} 19... Rac8+ {[%clk 0:03:12]} 20. Nc4 {[%clk 0:02:34.8]} 20...
Rxc4+ {[%clk 0:03:10.1]} 21. Kd2 {[%clk 0:02:33.8]} 21... Rc7 {[%clk 0:02:36]}
22. Kxd3 {[%clk 0:02:31.7]} 22... Rd8+ {[%clk 0:02:33.5]} 23. Ke2 {[%clk
0:02:29.8]} 23... Rxd1 {[%clk 0:02:31.7]} 24. Rxd1 {[%clk 0:02:28.8]} 24... Rd7
{[%clk 0:02:29.6]} 25. Rc1 {[%clk 0:02:24.5]} 25... h6 {[%clk 0:02:27.5]} 26.
Rc8+ {[%clk 0:02:19.4]} 26... Kh7 {[%clk 0:02:25.9]} 27. Rb8 {[%clk 0:02:14.2]}
27... Nd5 {[%clk 0:02:19.4]} 28. Rxb7 {[%clk 0:02:12.1]} 28... Rxb7 {[%clk
0:02:18]} 29. b3 {[%clk 0:02:10.4]} 29... a5 {[%clk 0:02:15.2]} 30. Kd3 {[%clk
0:02:02.9]} 30... Nb4+ {[%clk 0:02:11.1]} 31. Kc4 {[%clk 0:02:01.5]} 31... Nxa2
{[%clk 0:02:10.2]} 32. b4 {[%clk 0:02:00]} 32... axb4 {[%clk 0:02:08]} 33. Kb3
{[%clk 0:01:58.1]} 33... Nc1+ {[%clk 0:02:03.6]} 34. Kc2 {[%clk 0:01:56.3]}
34... b3+ {[%clk 0:02:01.5]} 35. Kxc1 {[%clk 0:01:55.3]} 35... b2+ {[%clk
0:01:59]} 36. Kb1 {[%clk 0:01:54.5]} 36... Bf6 {[%clk 0:01:58.1]} 37. f3 {[%clk
0:01:51.6]} 37... Ra7 {[%clk 0:01:57]} 38. g4 {[%clk 0:01:49.6]} 38... Ra1+
{[%clk 0:01:55.8]} 39. Kc2 {[%clk 0:01:47.1]} 39... b1=Q+ {[%clk 0:01:54.3]} 40.
Kd2 {[%clk 0:01:46.2]} 40... Qb3 {[%clk 0:01:51.7]} 41. Ke2 {[%clk 0:01:44.7]}
41... Ra2+ {[%clk 0:01:50.7]} 42. Kf1 {[%clk 0:01:43.8]} 42... Qb1# {[%clk
0:01:49.9]} 0-1

[Event "Live Chess"]
[Site "Chess.com"]
[Date "2023.05.20"]
[Round "-"]
[White "apl_trainer"]
[Black "OSmith06"]
[Result "1-0"]
[WhiteElo "1649"]
[BlackElo "1713"]
[TimeControl "300"]
[EndTime "11:34:55 PDT"]
[Termination "apl_trainer won by checkmate"]

1. d4 {[%clk 0:04:58.4]} 1... Nf6 {[%clk 0:04:58.4]} 2. c4 {[%clk 0:04:57.2]}
2... e6 {[%clk 0:04:55.1]} 3. Nc3 {[%clk 0:04:55.9]} 3... Bb4 {[%clk 0:04:53.1]}
4. a3 {[%clk 0:04:54.6]} 4... Bxc3+ {[%clk 0:04:51.7]} 5. bxc3 {[%clk
0:04:53.6]} 5... c5 {[%clk 0:04:51.6]} 6. e3 {[%clk 0:04:51.3]} 6... O-O {[%clk
0:04:48.5]} 7. Bd3 {[%clk 0:04:49.5]} 7... d5 {[%clk 0:04:46.1]} 8. cxd5 {[%clk
0:04:46.5]} 8... exd5 {[%clk 0:04:40]} 9. Ne2 {[%clk 0:04:43]} 9... cxd4 {[%clk
0:04:34.6]} 10. cxd4 {[%clk 0:04:41.3]} 10... Ne4 {[%clk 0:04:33.6]} 11. O-O
{[%clk 0:04:36.5]} 11... Nc6 {[%clk 0:04:28.4]} 12. f3 {[%clk 0:04:34.6]} 12...
Nf6 {[%clk 0:04:25.9]} 13. Bb2 {[%clk 0:04:30]} 13... Re8 {[%clk 0:04:21.5]} 14.
Qd2 {[%clk 0:04:12.2]} 14... Qe7 {[%clk 0:04:18.4]} 15. Bc1 {[%clk 0:04:10.3]}
15... a6 {[%clk 0:04:13.4]} 16. Ng3 {[%clk 0:04:08]} 16... Bd7 {[%clk
0:04:05.6]} 17. Qf2 {[%clk 0:03:56]} 17... Rac8 {[%clk 0:03:55.5]} 18. e4 {[%clk
0:03:54.2]} 18... dxe4 {[%clk 0:03:40.6]} 19. fxe4 {[%clk 0:03:52.8]} 19... Ng4
{[%clk 0:03:28.2]} 20. Qf4 {[%clk 0:03:40]} 20... Nxd4 {[%clk 0:03:22.2]} 21.
Bb2 {[%clk 0:03:39]} 21... Nb3 {[%clk 0:03:08.7]} 22. h3 {[%clk 0:03:26.6]}
22... Nxa1 {[%clk 0:03:02.8]} 23. hxg4 {[%clk 0:03:17.4]} 23... Nb3 {[%clk
0:03:00.5]} 24. Nh5 {[%clk 0:03:15.9]} 24... g6 {[%clk 0:02:46.1]} 25. Nf6+
{[%clk 0:03:13.2]} 25... Kf8 {[%clk 0:02:42.4]} 26. Qh6# {[%clk 0:03:09.5]} 1-0

[Event "Live Chess"]
[Site "Chess.com"]
[Date "2023.05.20"]
[Round "-"]
[White "1600x"]
[Black "booktrunk"]
[Result "1-0"]
[WhiteElo "1568"]
[BlackElo "1331"]
[TimeControl "300"]
[EndTime "11:34:59 PDT"]
[Termination "1600x won by resignation"]

1. d4 {[%clk 0:04:55.6]} 1... d5 {[%clk 0:04:59.9]} 2. e3 {[%clk 0:04:49.6]}
2... Bf5 {[%clk 0:04:59.7]} 3. c4 {[%clk 0:04:47.6]} 3... Nf6 {[%clk 0:04:58]}
4. Nf3 {[%clk 0:04:45.6]} 4... e6 {[%clk 0:04:56.4]} 5. Nc3 {[%clk 0:04:43.7]}
5... dxc4 {[%clk 0:04:54.6]} 6. Bxc4 {[%clk 0:04:42.3]} 6... a6 {[%clk
0:04:52.8]} 7. Nh4 {[%clk 0:04:38.9]} 7... Bg4 {[%clk 0:04:47.9]} 8. f3 {[%clk
0:04:37.6]} 8... Bh5 {[%clk 0:04:44.1]} 9. O-O {[%clk 0:04:35.7]} 9... Nfd7
{[%clk 0:04:38.9]} 10. g3 {[%clk 0:04:18.3]} 10... g5 {[%clk 0:04:31.9]} 11. Ng2
{[%clk 0:04:16.7]} 11... Bg6 {[%clk 0:04:30.8]} 12. e4 {[%clk 0:04:15]} 12...
Nb6 {[%clk 0:04:28.8]} 13. Bb3 {[%clk 0:04:13.6]} 13... Be7 {[%clk 0:04:25.9]}
14. f4 {[%clk 0:04:12]} 14... gxf4 {[%clk 0:04:24.5]} 15. Nxf4 {[%clk
0:04:10.6]} 15... Nc6 {[%clk 0:04:14.2]} 16. Be3 {[%clk 0:04:09.1]} 16... Nc4
{[%clk 0:04:10.7]} 17. Bxc4 {[%clk 0:04:07.6]} 17... Qd7 {[%clk 0:04:08.7]} 18.
d5 {[%clk 0:04:06.3]} 18... exd5 {[%clk 0:04:07.8]} 19. exd5 {[%clk 0:04:05.2]}
19... Ne5 {[%clk 0:04:03.4]} 20. Qd4 {[%clk 0:04:03.6]} 20... f6 {[%clk
0:04:01.1]} 21. Bb3 {[%clk 0:04:02]} 21... b6 {[%clk 0:03:48.9]} 22. Ne6 {[%clk
0:04:00.1]} 22... Bc5 {[%clk 0:03:42.7]} 23. Qf4 {[%clk 0:03:58.4]} 23... Bxe3+
{[%clk 0:03:36.1]} 24. Qxe3 {[%clk 0:03:55.9]} 24... Ng4 {[%clk 0:03:34.8]} 25.
Qf4 {[%clk 0:03:44]} 25... h5 {[%clk 0:03:32.1]} 26. d6 {[%clk 0:03:42.6]} 26...
Qxd6 {[%clk 0:03:22.8]} 27. Nxc7+ {[%clk 0:03:40.1]} 27... Kd7 {[%clk
0:03:20.4]} 28. Rad1 {[%clk 0:03:37.7]} 28... Ne5 {[%clk 0:03:10.3]} 29. Qxf6
{[%clk 0:03:35.6]} 29... Qd4+ {[%clk 0:03:01.5]} 30. Rxd4+ {[%clk 0:03:32.9]}
30... Kxc7 {[%clk 0:03:00.9]} 31. Qxe5+ {[%clk 0:03:31.6]} 1-0

[Event "Live Chess"]
[Site "Chess.com"]
[Date "2023.05.20"]
[Round "-"]
[White "garyjc"]
[Black "thrithik"]
[Result "1-0"]
[WhiteElo "1036"]
[BlackElo "465"]
[TimeControl "300"]
[EndTime "11:35:02 PDT"]
[Termination "garyjc won by checkmate"]

1. e4 {[%clk 0:04:57.6]} 1... h6 {[%clk 0:04:51.3]} 2. d4 {[%clk 0:04:56.4]}
2... Nf6 {[%clk 0:04:49.7]} 3. e5 {[%clk 0:04:55]} 3... Ne4 {[%clk 0:04:48.3]}
4. Bd3 {[%clk 0:04:51.8]} 4... Nc5 {[%clk 0:04:42.3]} 5. Be2 {[%clk 0:04:44.6]}
5... Ne4 {[%clk 0:04:39.8]} 6. c3 {[%clk 0:04:40.2]} 6... Nxc3 {[%clk
0:04:36.9]} 7. bxc3 {[%clk 0:04:38.4]} 7... Nc6 {[%clk 0:04:29.7]} 8. Nf3 {[%clk
0:04:35.8]} 8... Na5 {[%clk 0:04:26.2]} 9. O-O {[%clk 0:04:32.9]} 9... c6 {[%clk
0:04:20]} 10. Bd2 {[%clk 0:04:31.3]} 10... d6 {[%clk 0:04:18.6]} 11. c4 {[%clk
0:04:29.9]} 11... b5 {[%clk 0:04:17.1]} 12. exd6 {[%clk 0:04:25.8]} 12... exd6
{[%clk 0:04:12.6]} 13. c5 {[%clk 0:04:16.5]} 13... dxc5 {[%clk 0:04:08.5]} 14.
dxc5 {[%clk 0:04:14.3]} 14... Bxc5 {[%clk 0:04:05.8]} 15. Re1 {[%clk 0:04:12.7]}
15... Bd4 {[%clk 0:04:03.9]} 16. Bd3+ {[%clk 0:04:01]} 16... Kf8 {[%clk
0:03:54.2]} 17. Nc3 {[%clk 0:03:59.9]} 17... Nb3 {[%clk 0:03:41.6]} 18. Qxb3
{[%clk 0:03:55.7]} 18... Bxf2+ {[%clk 0:03:37.2]} 19. Kxf2 {[%clk 0:03:53.5]}
19... Qh4+ {[%clk 0:03:34.5]} 20. Nxh4 {[%clk 0:03:50.5]} 20... g5 {[%clk
0:03:32.4]} 21. Qb4+ {[%clk 0:03:49.1]} 21... c5 {[%clk 0:03:26.1]} 22. Qxc5+
{[%clk 0:03:46.9]} 22... Kg8 {[%clk 0:03:24.3]} 23. Re8+ {[%clk 0:03:41.1]}
23... Kg7 {[%clk 0:03:19.1]} 24. Nf5+ {[%clk 0:03:40.2]} 24... Kh7 {[%clk
0:03:09.8]} 25. Rxh8+ {[%clk 0:03:36.1]} 25... Kxh8 {[%clk 0:03:07.8]} 26. Qf8+
{[%clk 0:03:33.2]} 26... Kh7 {[%clk 0:03:04.2]} 27. Qg7# {[%clk 0:03:31.9]} 1-0

[Event "Live Chess"]
[Site "Chess.com"]
[Date "2023.05.20"]
[Round "-"]
[White "ReeceHockton"]
[Black "EdenHazard8"]
[Result "0-1"]
[WhiteElo "323"]
[BlackElo "2091"]
[TimeControl "300"]
[EndTime "11:35:06 PDT"]
[Termination "EdenHazard8 won by checkmate"]

1. d4 {[%clk 0:04:57.7]} 1... e5 {[%clk 0:04:59.9]} 2. Nf3 {[%clk 0:04:53.8]}
2... e4 {[%clk 0:04:58.8]} 3. Ne5 {[%clk 0:04:52.2]} 3... Nh6 {[%clk 0:04:57.8]}
4. f4 {[%clk 0:04:49.6]} 4... d6 {[%clk 0:04:57]} 5. Nc4 {[%clk 0:04:44.7]} 5...
Nf5 {[%clk 0:04:56.6]} 6. e3 {[%clk 0:04:40.6]} 6... Qh4+ {[%clk 0:04:55.4]} 7.
g3 {[%clk 0:04:38.5]} 7... Nxg3 {[%clk 0:04:54.7]} 8. hxg3 {[%clk 0:04:37.4]}
8... Qxh1 {[%clk 0:04:53.1]} 9. Qe2 {[%clk 0:04:31.1]} 9... Bh3 {[%clk
0:04:50.3]} 10. Bd2 {[%clk 0:04:25.4]} 10... h5 {[%clk 0:04:44.7]} 11. Nc3
{[%clk 0:04:16]} 11... c6 {[%clk 0:04:39.8]} 12. Nxe4 {[%clk 0:04:14.6]} 12...
Qxe4 {[%clk 0:04:36.8]} 13. Nxd6+ {[%clk 0:04:10.6]} 13... Bxd6 {[%clk
0:04:33.4]} 14. Bxh3 {[%clk 0:04:05.5]} 14... h4 {[%clk 0:04:29.4]} 15. Bg4
{[%clk 0:03:58]} 15... h3 {[%clk 0:04:27.1]} 16. Bf3 {[%clk 0:03:55.4]} 16...
Qh7 {[%clk 0:04:25.8]} 17. O-O-O {[%clk 0:03:52.6]} 17... h2 {[%clk 0:04:24.8]}
18. Bh1 {[%clk 0:03:29.9]} 18... Qh3 {[%clk 0:04:20.5]} 19. Bg2 {[%clk 0:03:25]}
19... Qxg3 {[%clk 0:04:19.4]} 20. Be1 {[%clk 0:03:18.5]} 20... Qg6 {[%clk
0:04:15.8]} 21. Qf2 {[%clk 0:03:12.3]} 21... h1=Q {[%clk 0:04:13.8]} 22. Bxh1
{[%clk 0:03:10.5]} 22... Rxh1 {[%clk 0:04:12.2]} 23. Qg3 {[%clk 0:02:55]} 23...
Qxg3 {[%clk 0:04:09.3]} 24. Bxg3 {[%clk 0:02:54.5]} 24... Rxd1+ {[%clk
0:04:08.6]} 25. Kxd1 {[%clk 0:02:53.6]} 25... Nd7 {[%clk 0:04:08.3]} 26. c3
{[%clk 0:02:50.9]} 26... Nf6 {[%clk 0:04:07]} 27. Bh4 {[%clk 0:02:49.2]} 27...
Ne4 {[%clk 0:04:05.6]} 28. Bg5 {[%clk 0:02:44.6]} 28... Nxg5 {[%clk 0:04:04.1]}
29. fxg5 {[%clk 0:02:43.8]} 29... f6 {[%clk 0:04:04]} 30. gxf6 {[%clk
0:02:42.4]} 30... g5 {[%clk 0:04:03.9]} 31. Ke2 {[%clk 0:02:40.1]} 31... g4
{[%clk 0:04:03.8]} 32. Kf2 {[%clk 0:02:39.2]} 32... g3+ {[%clk 0:04:03.7]} 33.
Kf3 {[%clk 0:02:36.8]} 33... Kf7 {[%clk 0:04:03.6]} 34. e4 {[%clk 0:02:31.1]}
34... Rg8 {[%clk 0:04:03.1]} 35. e5 {[%clk 0:02:30]} 35... g2 {[%clk 0:04:03]}
36. exd6 {[%clk 0:02:26.5]} 36... g1=Q {[%clk 0:04:01.9]} 37. d7 {[%clk
0:02:25.3]} 37... Rg3+ {[%clk 0:04:01.3]} 38. Ke4 {[%clk 0:02:22.7]} 38... Qe3+
{[%clk 0:04:00.6]} 39. Kf5 {[%clk 0:02:21.1]} 39... Rg5# {[%clk 0:03:59.9]} 0-1

[Event "Live Chess"]
[Site "Chess.com"]
[Date "2023.05.20"]
[Round "-"]
[White "rideuv21"]
[Black "manthanit"]
[Result "1-0"]
[WhiteElo "1835"]
[BlackElo "952"]
[TimeControl "300"]
[EndTime "11:35:07 PDT"]
[Termination "rideuv21 won by checkmate"]

1. e4 {[%clk 0:04:55]} 1... Nf6 {[%clk 0:04:57]} 2. e5 {[%clk 0:04:52.6]} 2...
Ne4 {[%clk 0:04:55.9]} 3. Bc4 {[%clk 0:04:48.5]} 3... d6 {[%clk 0:04:54.8]} 4.
Bxf7+ {[%clk 0:04:27.8]} 4... Kxf7 {[%clk 0:04:52.4]} 5. Qf3+ {[%clk 0:04:27.4]}
5... Nf6 {[%clk 0:04:45.4]} 6. exf6 {[%clk 0:04:27.3]} 6... exf6 {[%clk
0:04:44.1]} 7. d4 {[%clk 0:04:25.9]} 7... Be7 {[%clk 0:04:40.4]} 8. Nc3 {[%clk
0:04:24.7]} 8... Re8 {[%clk 0:04:39.9]} 9. Be3 {[%clk 0:04:23.4]} 9... Kg8
{[%clk 0:04:39]} 10. O-O-O {[%clk 0:04:22.7]} 10... Bf8 {[%clk 0:04:37.9]} 11.
Nge2 {[%clk 0:04:20.8]} 11... Nc6 {[%clk 0:04:34.6]} 12. h4 {[%clk 0:04:19.3]}
12... Bd7 {[%clk 0:04:31.6]} 13. h5 {[%clk 0:04:15.3]} 13... Bf5 {[%clk
0:04:28.8]} 14. h6 {[%clk 0:04:14]} 14... g6 {[%clk 0:04:25.6]} 15. g4 {[%clk
0:04:11.7]} 15... Bd7 {[%clk 0:04:13.9]} 16. Nd5 {[%clk 0:04:06.7]} 16... Re6
{[%clk 0:03:46.6]} 17. Nef4 {[%clk 0:04:01.2]} 17... Re8 {[%clk 0:02:58.7]} 18.
Nh5 {[%clk 0:03:43.4]} 18... Be7 {[%clk 0:02:41.1]} 19. Nhxf6+ {[%clk
0:03:41.2]} 19... Bxf6 {[%clk 0:02:40]} 20. Nxf6+ {[%clk 0:03:40.4]} 20... Kh8
{[%clk 0:02:26.7]} 21. Nxe8 {[%clk 0:03:39.3]} 21... Qxe8 {[%clk 0:02:24.5]} 22.
Qf6+ {[%clk 0:03:38.9]} 22... Kg8 {[%clk 0:02:19.2]} 23. Qg7# {[%clk 0:03:38.8]}
1-0

[Event "Live Chess"]
[Site "Chess.com"]
[Date "2023.05.20"]
[Round "-"]
[White "chessfiction"]
[Black "risinghelios"]
[Result "1-0"]
[WhiteElo "2413"]
[BlackElo "1941"]
[TimeControl "300"]
[EndTime "11:35:09 PDT"]
[Termination "chessfiction won by resignation"]

1. e4 {[%clk 0:04:57.1]} 1... c5 {[%clk 0:04:59.5]} 2. Nf3 {[%clk 0:04:52.4]}
2... Nc6 {[%clk 0:04:59.1]} 3. d4 {[%clk 0:04:50.7]} 3... cxd4 {[%clk 0:04:59]}
4. c3 {[%clk 0:04:49.7]} 4... g6 {[%clk 0:04:58.9]} 5. cxd4 {[%clk 0:04:48.7]}
5... d5 {[%clk 0:04:58.5]} 6. exd5 {[%clk 0:04:47.8]} 6... Qxd5 {[%clk
0:04:58.4]} 7. Nc3 {[%clk 0:04:47]} 7... Qd8 {[%clk 0:04:56.8]} 8. d5 {[%clk
0:04:46.2]} 8... Nb8 {[%clk 0:04:54.8]} 9. h4 {[%clk 0:04:43.3]} 9... Bg4 {[%clk
0:04:53.9]} 10. Qa4+ {[%clk 0:04:40.2]} 10... Nd7 {[%clk 0:04:53.1]} 11. Qxg4
{[%clk 0:04:38.6]} 1-0

[Event "Live Chess"]
[Site "Chess.com"]
[Date "2023.05.20"]
[Round "-"]
[White "xx_blindpuffin_xx"]
[Black "JoeyCage"]
[Result "1/2-1/2"]
[WhiteElo "2196"]
[BlackElo "2316"]
[TimeControl "300"]
[EndTime "11:35:10 PDT"]
[Termination "Game drawn - timeout vs insufficient material"]

1. d4 {[%clk 0:04:59]} 1... g6 {[%clk 0:04:58.5]} 2. Bf4 {[%clk 0:04:58.2]} 2...
Bg7 {[%clk 0:04:57.5]} 3. e3 {[%clk 0:04:57.8]} 3... c5 {[%clk 0:04:55.5]} 4. c3
{[%clk 0:04:54.8]} 4... Qb6 {[%clk 0:04:53.5]} 5. Qc1 {[%clk 0:04:50.7]} 5...
Nc6 {[%clk 0:04:50.5]} 6. Nf3 {[%clk 0:04:49.4]} 6... d6 {[%clk 0:04:49.5]} 7.
Nbd2 {[%clk 0:04:47.5]} 7... e5 {[%clk 0:04:47.5]} 8. dxe5 {[%clk 0:04:44.8]}
8... dxe5 {[%clk 0:04:46.4]} 9. Bg3 {[%clk 0:04:35.3]} 9... Nge7 {[%clk
0:04:44.2]} 10. Bc4 {[%clk 0:04:09.4]} 10... Nf5 {[%clk 0:04:40.4]} 11. O-O
{[%clk 0:04:08]} 11... Nxg3 {[%clk 0:04:38.6]} 12. hxg3 {[%clk 0:04:06.9]} 12...
O-O {[%clk 0:04:37.5]} 13. a4 {[%clk 0:04:02.9]} 13... Qc7 {[%clk 0:04:36.5]}
14. Rd1 {[%clk 0:03:58.9]} 14... b6 {[%clk 0:04:34.5]} 15. Bd5 {[%clk
0:03:57.1]} 15... Bb7 {[%clk 0:04:32.6]} 16. Nc4 {[%clk 0:03:55.1]} 16... Rad8
{[%clk 0:04:07.5]} 17. e4 {[%clk 0:03:52.9]} 17... h6 {[%clk 0:03:57.1]} 18. Qc2
{[%clk 0:03:41.3]} 18... a6 {[%clk 0:03:54.8]} 19. Rd2 {[%clk 0:03:15.6]} 19...
b5 {[%clk 0:03:51.5]} 20. axb5 {[%clk 0:03:15.5]} 20... axb5 {[%clk 0:03:49.7]}
21. Ne3 {[%clk 0:03:15]} 21... Bc8 {[%clk 0:03:41.8]} 22. b4 {[%clk 0:02:57.2]}
22... Ne7 {[%clk 0:03:34.9]} 23. Ra5 {[%clk 0:02:44.7]} 23... Qb6 {[%clk
0:03:26.3]} 24. Qa2 {[%clk 0:02:30.3]} 24... Nxd5 {[%clk 0:03:12.9]} 25. Nxd5
{[%clk 0:02:28.2]} 25... Qb8 {[%clk 0:02:51]} 26. bxc5 {[%clk 0:01:49.6]} 26...
Be6 {[%clk 0:02:46.5]} 27. c6 {[%clk 0:01:44.8]} 27... Bxd5 {[%clk 0:02:42.2]}
28. exd5 {[%clk 0:01:43.1]} 28... e4 {[%clk 0:02:38.6]} 29. Nd4 {[%clk
0:01:42.1]} 29... b4 {[%clk 0:02:24.1]} 30. Rb2 {[%clk 0:01:24.5]} 30... Bxd4
{[%clk 0:02:18.9]} 31. cxd4 {[%clk 0:01:23.4]} 31... Qb6 {[%clk 0:02:12]} 32.
Qa4 {[%clk 0:01:08.7]} 32... Qxd4 {[%clk 0:02:08.8]} 33. Rxb4 {[%clk 0:01:07.6]}
33... Qd2 {[%clk 0:02:04.1]} 34. Rd4 {[%clk 0:00:57.1]} 34... Qe1+ {[%clk
0:02:00.8]} 35. Kh2 {[%clk 0:00:56.5]} 35... Qxf2 {[%clk 0:01:57.8]} 36. Rxe4
{[%clk 0:00:53.8]} 36... Qf5 {[%clk 0:01:46.7]} 37. Rd4 {[%clk 0:00:43.5]} 37...
Qh5+ {[%clk 0:01:42.5]} 38. Rh4 {[%clk 0:00:42.5]} 38... Qe5 {[%clk 0:01:38.2]}
39. Qc4 {[%clk 0:00:36.9]} 39... h5 {[%clk 0:01:29.4]} 40. Rc5 {[%clk 0:00:36]}
40... Rc8 {[%clk 0:01:22.6]} 41. Re4 {[%clk 0:00:34.3]} 41... Qd6 {[%clk
0:01:20.6]} 42. Rd4 {[%clk 0:00:33.7]} 42... Rfd8 {[%clk 0:01:19.1]} 43. c7
{[%clk 0:00:32.4]} 43... Rd7 {[%clk 0:01:17.4]} 44. Rc6 {[%clk 0:00:31.9]} 44...
Rdxc7 {[%clk 0:01:02.1]} 45. Rxd6 {[%clk 0:00:31.2]} 45... Rxc4 {[%clk
0:01:00.7]} 46. Rxc4 {[%clk 0:00:30.8]} 46... Rxc4 {[%clk 0:00:59.7]} 47. Rd8+
{[%clk 0:00:30.2]} 47... Kg7 {[%clk 0:00:58.7]} 48. d6 {[%clk 0:00:30.1]} 48...
Rd4 {[%clk 0:00:57.9]} 49. Kh3 {[%clk 0:00:28.4]} 49... Kf6 {[%clk 0:00:56.4]}
50. d7 {[%clk 0:00:27.3]} 50... Ke7 {[%clk 0:00:53]} 51. Rg8 {[%clk 0:00:25.8]}
51... Rxd7 {[%clk 0:00:51.2]} 52. Kh4 {[%clk 0:00:25.4]} 52... Kf6 {[%clk
0:00:49.7]} 53. Ra8 {[%clk 0:00:24.2]} 53... Rd4+ {[%clk 0:00:48.1]} 54. Kh3
{[%clk 0:00:23.8]} 54... Rd3 {[%clk 0:00:46.9]} 55. Ra6+ {[%clk 0:00:23.4]}
55... Kg5 {[%clk 0:00:45.7]} 56. Ra7 {[%clk 0:00:23.3]} 56... f5 {[%clk
0:00:44.5]} 57. Ra4 {[%clk 0:00:22]} 57... Re3 {[%clk 0:00:40.6]} 58. Rb4 {[%clk
0:00:21.1]} 58... Re4 {[%clk 0:00:39.4]} 59. Rb5 {[%clk 0:00:20.2]} 59... h4
{[%clk 0:00:38.1]} 60. gxh4+ {[%clk 0:00:19.8]} 60... Rxh4+ {[%clk 0:00:37]} 61.
Kg3 {[%clk 0:00:19.7]} 61... Rc4 {[%clk 0:00:35.4]} 62. Kf2 {[%clk 0:00:19.4]}
62... Kg4 {[%clk 0:00:33.2]} 63. Rb6 {[%clk 0:00:19.1]} 63... g5 {[%clk
0:00:32.2]} 64. Rb3 {[%clk 0:00:18.7]} 64... Rc2+ {[%clk 0:00:30.1]} 65. Kg1
{[%clk 0:00:18.3]} 65... f4 {[%clk 0:00:29.3]} 66. Rf3 {[%clk 0:00:17.9]} 66...
Kh4 {[%clk 0:00:27.9]} 67. Rf1 {[%clk 0:00:17.5]} 67... Kg3 {[%clk 0:00:23.7]}
68. Rf3+ {[%clk 0:00:16.9]} 68... Kg4 {[%clk 0:00:22.7]} 69. Rf1 {[%clk
0:00:16]} 69... Rd2 {[%clk 0:00:21.5]} 70. Rb1 {[%clk 0:00:14.3]} 70... Rd3
{[%clk 0:00:20.1]} 71. Kh2 {[%clk 0:00:13.8]} 71... Rd2 {[%clk 0:00:18.4]} 72.
Rb8 {[%clk 0:00:13.3]} 72... f3 {[%clk 0:00:16.2]} 73. Rb4+ {[%clk 0:00:12.7]}
73... Kh5 {[%clk 0:00:14.1]} 74. Kg3 {[%clk 0:00:11.4]} 74... fxg2 {[%clk
0:00:12.6]} 75. Rb1 {[%clk 0:00:10.6]} 75... Rc2 {[%clk 0:00:11.1]} 76. Rg1
{[%clk 0:00:09.6]} 76... Ra2 {[%clk 0:00:08.7]} 77. Kh2 {[%clk 0:00:09]} 77...
Kh4 {[%clk 0:00:07.4]} 78. Rxg2 {[%clk 0:00:08.6]} 78... Rxg2+ {[%clk
0:00:06.2]} 79. Kxg2 {[%clk 0:00:08.5]} 79... Kg4 {[%clk 0:00:05.9]} 80. Kh2
{[%clk 0:00:08.4]} 80... Kf3 {[%clk 0:00:04.8]} 81. Kg1 {[%clk 0:00:07.7]} 81...
Kg3 {[%clk 0:00:04.2]} 82. Kf1 {[%clk 0:00:06.6]} 82... Kh2 {[%clk 0:00:03.3]}
83. Kf2 {[%clk 0:00:05.9]} 83... g4 {[%clk 0:00:03]} 84. Ke3 {[%clk 0:00:05.3]}
84... g3 {[%clk 0:00:02.9]} 85. Kf4 {[%clk 0:00:05.2]} 85... g2 {[%clk
0:00:02.8]} 86. Kf5 {[%clk 0:00:05.1]} 86... g1=Q {[%clk 0:00:02.7]} 87. Ke6
{[%clk 0:00:05]} 87... Qe3+ {[%clk 0:00:02]} 88. Kd5 {[%clk 0:00:04.9]} 88...
Kg3 {[%clk 0:00:01.8]} 89. Kc4 {[%clk 0:00:04.8]} 89... Kf4 {[%clk 0:00:01.2]}
90. Kb4 {[%clk 0:00:04.7]} 90... Qd2+ {[%clk 0:00:00.9]} 91. Kb3 {[%clk
0:00:04.3]} 91... Ke5 {[%clk 0:00:00.8]} 92. Kc4 {[%clk 0:00:03.7]} 1/2-1/2